Cogmind - Beta 9.1 *** ADVENTURER MODE // 2019.10.31 @ 00:49:40 // Halloween2019/Abominations Player: Joseph Result: Destroyed by Lesser Abomination with Small Laser Performance ------------- Evolutions (0) 0 Regions Visited (1) 200 Robots Destroyed (10) 50 Value Destroyed (514) 514 Prototype IDs (0) 0 Alien Tech Used (0) 0 Bonus (0) 0 TOTAL SCORE: 764 Bonus ------- None Cogmind --------- Core Integrity 0/250 Matter 278/300 Energy 125/125 System Corruption 6% Temperature Cool (23) Location -10/Materials Parts ------- Power (1) Light Ion Engine Propulsion (2) Aluminum Leg Aluminum Leg Utility (2) Small Storage Unit Small Storage Unit Weapon (2) Small Laser Light Cannon Inventory (8) Light Ion Engine Aluminum Leg Aluminum Leg Wheel Compact Wheel Small Storage Unit Small Storage Unit Peak State ------------ Power Light Ion Engine Propulsion Aluminum Leg Aluminum Leg Utility Small Storage Unit Small Storage Unit Weapon Assault Rifle Assault Rifle Inventory Light Ion Engine Wheel Compact Wheel Hover Unit Small Storage Unit Medium Laser [Rating: 7] Favorites ----------- Power Light Ion Engine Engine Light Ion Engine Propulsion Aluminum Leg Leg Aluminum Leg Wheel Wheel Hover Unit Hover Unit Utility Small Storage Unit Storage Small Storage Unit Weapon Assault Rifle Energy Gun Medium Laser Ballistic Gun Assault Rifle Ballistic Cannon Light Cannon Launcher Grenade Launcher Build | -11 -10 ------- Run | Scr Mat Slots Evolved . | . . Power . | . . Propulsion . | . . Utility . | . . Weapon . | . . Parts Attached 21 | 7 14 Power 2 | 1 1 Engine 2 | 1 1 Core . | . . Reactor . | . . Propulsion 7 | 3 4 Treads . | . . Leg 4 | 2 2 Wheel 1 | 1 . Hover 2 | . 2 Flight . | . . Utility 2 | 1 1 Device . | . . Storage 2 | 1 1 Processor . | . . Hackware . | . . Protection . | . . Artifact . | . . Weapon 10 | 2 8 Energy Gun 3 | . 3 Energy Cannon . | . . Ballistic Gun 3 | 2 1 Ballistic Cannon 3 | . 3 Launcher 1 | . 1 Special Weapon . | . . Impact Weapon . | . . Slashing Weapon . | . . Piercing Weapon . | . . Special Melee Weapon . | . . Unidentified Prototypes . | . . Parts Lost 4 | . 4 Power 1 | . 1 Propulsion 1 | . 1 Utility . | . . Weapon 2 | . 2 Highest Loss Streak 3 | . 3 Average Slot Usage (%) 81 | . 81 Engine 11 | . 11 Leg 21 | . 21 Hover 1 | . 1 Storage 24 | . 24 Energy Gun 1 | . 1 Ballistic Gun 10 | . 10 Ballistic Cannon 8 | . 8 Naked Turns . | . . Heaviest Build 16 | 11 16 Greatest Support 20 | 20 20 Greatest Overweight (x) 4 | 1 4 Average Overweight (x) . | . . Largest Inventory Capacity 8 | 6 8 Average Capacity 6 | 5 7 Most Carried 8 | 4 8 Average Carried 5 | 3 6 Final Capacity 8 | 6 8 Final Carried 7 | 4 7 Class Distribution -------------------- 100% | Mutant Dominant Class ---------------- Mutant | -10/Materials Resources | -11 -10 ----------- Run | Scr Mat Matter Collected 721 | 139 582 Remotely . | . . Salvage Created 297 | . 297 Parts 24 | . 24 Haulers Intercepted . | . . Recyclers Shooed . | . . Parts Field Recycled . | . . Retrieved Matter . | . . Parts Self-Destructed . | . . Prevented . | . . Kills | -11 -10 ------- Run | Scr Mat Combat Hostiles Destroyed 9 | . 9 Guns 2 | . 2 Cannons 7 | . 7 Classes Destroyed 3 | . 3 Mechanic 1 | . 1 Grunt 2 | . 2 Abomination 7 | . 7 Best Kill Streak 2 | . 2 Combat Bots Only 2 | . 2 Max Kills in Single Turn 1 | . 1 Gunslinging . | . . Exploded . | . . Melee . | . . Uniques/NPCs Destroyed . | . . Combat | -11 -10 -------- Run | Scr Mat Damage Taken 1201 | . 1201 Core 255 | . 255 Absorbed by Shields . | . . Core Remaining (%) 100 | 100 . Volleys Fired 71 | . 71 Largest 2 | . 2 Hottest 85 | . 85 Shots Fired 105 | . 105 Gun 40 | . 40 Cannon 65 | . 65 Launcher . | . . Special . | . . Kinetic 96 | . 96 Thermal 9 | . 9 Explosive . | . . Electromagnetic . | . . Robot Hit Streak 16 | . 16 Robot Miss Streak 7 | . 7 Penetration Max . | . . Secondary Targets . | . . Shots Hit Robots 70 | . 70 Core Hits 29 | . 29 Critical Hits 1 | . 1 Critical Kills . | . . Critical Parts Destroyed 1 | . 1 Melee Attacks . | . . Impact . | . . Slashing . | . . Piercing . | . . Sneak Attacks . | . . Combat Hostiles . | . . Follow-up Attacks . | . . Damage Inflicted 1176 | . 1176 Guns 351 | . 351 Cannons 825 | . 825 Explosions . | . . Melee . | . . Ramming . | . . Kinetic 1078 | . 1078 Thermal 98 | . 98 Explosive . | . . Electromagnetic . | . . Impact . | . . Slashing . | . . Piercing . | . . Highest Corruption 4 | . 4 Average Corruption 3 | . 3 Corruption Purged . | . . Effects 2 | . 2 Message Errors 2 | . 2 Overload Shots . | . . Overflow Damage . | . . Projectiles . | . . Explosions . | . . Melee . | . . Knockbacks 12 | . 12 Impact . | . . Kinetic 11 | . 11 Secondary 1 | . 1 Self-Inflicted Damage . | . . Shots . | . . Rammed . | . . Targets Rammed . | . . Kicked . | . . Crushed . | . . Highest Temperature 60 | . 60 Average Temperature 20 | . 20 Received Heat Transfer 159 | . 159 Siege Activations . | . . Robots Corrupted . | . . Combat Hostiles . | . . Parts Fried . | . . Impact Corruptions . | . . Robots Melted . | . . Combat Hostiles . | . . Parts Melted . | . . Heat Transferred 76 | . 76 Parts Sabotaged . | . . Parts Stolen . | . . Parts Stripped . | . . Power Chain Reactions . | . . Missiles Intercepted . | . . Alert | -11 -10 ------- Run | Scr Mat Peak Influence 55 | . 55 Average Influence 3 | . 6 Maximum Alert Level . | . . Low Security (%) 100 | . . Level 1 . | . . Level 2 . | . . Level 3 . | . . Level 4 . | . . Level 5 . | . . High Security . | . . Max Security . | . . Squads Dispatched 2 | . 2 Investigation 1 | . 1 Extermination . | . . Reinforcement . | . . Assault 1 | . 1 Garrison . | . . Intercept . | . . Construction Impeded . | . . Haulers Reinforced . | . . Stealth | -11 -10 --------- Run | Scr Mat Distress Signals 1 | . 1 Communications Jammed . | . . Distress Signals . | . . Times Spotted 21 | . 21 Peak Tracking Total 8 | . 8 Tactical Retreats 3 | . 3 Traps | -11 -10 ------- Run | Scr Mat Traps Triggered . | . . Indirectly . | . . Trap Hack Attempts . | . . Triggered . | . . Disarmed . | . . Reprogrammed . | . . Reused . | . . Traps Extracted . | . . Installed . | . . Triggered . | . . Machines | -11 -10 ---------- Run | Scr Mat Machines Disabled . | . . Max in Single Turn . | . . Machines Sabotaged . | . . Garrisons Compromised . | . . Overloaded Fab Kills . | . . Fab Network Shutdowns . | . . Hacking | -11 -10 --------- Run | Scr Mat Machines Accessed . | . . Terminals . | . . Fabricators . | . . Repair Stations . | . . Recycling Units . | . . Scanalyzers . | . . Garrison Access . | . . Total Hacks . | . . Successful . | . . Failed . | . . Catastrophic . | . . Database Lockouts . | . . Manual . | . . Terminals . | . . Fabricators . | . . Repair Stations . | . . Recycling Units . | . . Scanalyzers . | . . Garrison Access . | . . Terminal Hacks . | . . Fabricator Hacks . | . . Repair Station Hacks . | . . Recycling Unit Hacks . | . . Scanalyzer . | . . Garrison Access Hacks . | . . Unauthorized Hacks . | . . Terminals . | . . Fabricators . | . . Repair Stations . | . . Recycling Units . | . . Scanalyzers . | . . Garrison Access . | . . Data Cores Recovered . | . . Used . | . . Hacking Detections . | . . Full Trace Events . | . . Feedback Events . | . . Feedback Blocked . | . . Robot Schematics Acquired . | . . Robots Built . | . . Matter . | . . Time . | . . Total Robot Build Rating . | . . Part Schematics Acquired . | . . Parts Built . | . . Matter . | . . Time . | . . Total Part Build Rating . | . . Parts Repaired . | . . Time . | . . Parts Recycled . | . . Recycled Matter . | . . Retrieved Matter . | . . Retrieved Components . | . . Parts Scanalyzed . | . . Part Schematics Acquired . | . . Parts Damaged . | . . Bothacking | -11 -10 ------------ Run | Scr Mat Used RIF Installer . | . . Robots Hacked . | . . Non-combat . | . . Combat . | . . Robot Hacks Applied . | . . Relay Couplers Released . | . . Robots Rewired . | . . Allies Hacked . | . . Hacks Repelled . | . . Allies | -11 -10 -------- Run | Scr Mat Total Allies . | . . Largest Group . | . . Highest-Rated Group . | . . Highest-Rated Ally . | . . Total Orders . | . . Ally Attacks . | . . Total Damage . | . . Kills . | . . Allies Corrupted . | . . Allies Melted . | . . Intel | -11 -10 ------- Run | Scr Mat Robot Analysis Total . | . . Derelict Logs Recovered . | . . Drone Launches . | . . Drone Recoveries . | . . Exploration | -11 -10 ------------- Run | Scr Mat Turns Passed 1244 | 508 736 Spaces Moved 670 | 302 368 Core 55 | 39 16 Treads . | . . Legs 592 | 258 334 Wheels 5 | 5 . Hover 18 | . 18 Flight . | . . Fastest Speed 50 | 50 120 Average Speed 120 | 110 127 Slowest Speed 250 | 120 250 Overloaded Moves . | . . Propulsion Burnouts . | . . Robots Hopped . | . . Cave-ins Triggered . | . . Exploration Rate (%) 27 | 22 33 Regions Visited 1 Branch Regions . Pre-discovered Areas . | . . Known Exits Taken . | . . Unknown Exits Taken 1 | 1 . Scrap Searched . | . . Spaces Dug . | . . Terrain Destroyed . | . . Melee . | . . Projectile . | . . AOE . | . . Actions | -11 -10 --------- Run | Scr Mat Total 951 | 475 476 Wait 162 | 157 5 Move 669 | 301 368 Hop . | . . Pick Up 23 | 9 14 Fast Attach 4 | 1 3 Attach 17 | 6 11 Detach 2 | 1 1 Swap . | . . Drop 3 | . 3 Fire 71 | . 71 Melee . | . . Ram . | . . Kick . | . . Crush . | . . Escape Stasis . | . . Rewire . | . . Trap . | . . Miscellaneous . | . . Route ------- -11/Scrapyard -10/Materials History --------- Turn | Location | Event 2 | -11/Scrapyard | Met Revision 17 4 | -11/Scrapyard | Discovered new exit (range 15) 509 | -11/Scrapyard | Entered Materials 510 | -10/Materials | Build established: Mutant 854 | -10/Materials | Discovered new exit (range 11) 906 | -10/Materials | Core integrity fell below 50% 925 | -10/Materials | Core integrity fell below 20% 934 | -10/Materials | Lost 3 parts (1n2w) 1043 | -10/Materials | Discovered new exit (range 6) 1245 | -10/Materials | Destroyed by Lesser Abomination with Small Laser Last Messages --------------- 01144_ Acquired 3 matter. 01145_ Frozen by Ice Anomaly. 01161_ Lesser Abomination destroyed. 01165_ Acquired 8 matter. 01173_ Zapped by an electromagnetic arc from EM Anomaly. 01178_ Hungry Anomaly eats Wheel. 01179_ Hungry Anomaly eats Hover Unit. 01182_ Frozen by Ice Anomaly. 01184_ 3FZFNGNAONVZCKPE5T&H0RGIMJIXYM:M 01196_ Frozen by Ice Anomaly. 01198_ Zapped by an electromagnetic arc from EM Anomaly. 01203_ CDOX7% MZ8OIBICAMLJ2SY2P 01207_ Knocked back. 01219_ Acquired Sml. Laser. 01225_ Knocked back. 01238_ Lesser Abomination destroyed. 01239_ Lgt. Ion Engine springs to life within a quantum being. 01242_ Acquired 28 matter. 01244_ Lesser Abomination knocked back. 01245_ Zapped by an electromagnetic arc from EM Anomaly. Map ----- +----------------------------------------------------+ | | | | | ?????????????????????????????????????????????????? | | ?????????????????????????????????????????????????? | | ?????????????????????????????????????????????????? | | ?????????????????????????????????????????????????? | | ?????????????????????????????????????????????????? | | ?????????????????????????????????????????????????? | | ?????????????????????????????????????????????????? | | ?????????????????????????????????????????????????? | | ?????????????????????????????????????????????????? | | ?????????????????????????????????????????????????? | | ?????????????????????????????????????????????????? | | ?????????????????????????????????????????????????? | | ?????????????????????????????????????????????????? | | ?????????????????????????????????????????????????? | | ?????????????????????????????????????????????????? | | ?????????????????????????????????????????????????? | | ?????????????????????########????????????????????? | | ?????????????????????# #????????????????????? | | ?????????????????????# #????????????????????? | | ?????????????????????# """ #????????????????????? | | ?????????????????????# """ #????????????????????? | | ?????????????????????# """ #?????##?????????????? | | ?????????????????????# #???? ??????????????? | | ????????? % ####+####@######?"??#????????????? | | ????????? # #????????????? | | ????????? # #????????????? | | ????????? % n n nA + #????????????? | | ???????????####+#########+## # #????????????? | | ???????????????????????? # % #? #????????????? | | ???????????????????????? # #??? #????????????? | | ???????????????????????? # #?????????????????? | | ???????????????????????? # #?????????????????? | | ???????????????????????? # #?????????????????? | | ????????????????????????#### ##????????????????? | | ????????????????????????#""" #????????????????? | | ????????????????????????#" #????????????????? | | ????????????????????????#" #????????????????? | | ????????????????????????#" < #??????????? ????? | | ????????????????????????#" % #??????????? ????? | | ????????????????????????#" #??????????? #???? | | ????????????????????????#" #??????????? #???? | | ????????????????????????#### ##??????????? #???? | | ???????????????????????????# #???????????# #???? | | ???????????????????????????# #???????????# #???? | | ???????????????????????????# ############# #???? | | ???????????????????????????# #???? | | ???????????????????????????# % #???? | | ??????????????????????????## """ #??## | +----------------------------------------------------+ Best States ------------- Heat Dissipation 25 Energy Generation 10 Energy Capacity 125 Matter Stores 300 Matter Capacity 300 Sight Range 16 Terrain Scan Density 10 Resistance: KI 20 Resistance: TH 20 Resistance: EX 20 Resistance: EM 20 Resistance: I 20 Resistance: S 20 Resistance: P 20 Evasion (%) 50 Item Schematics ----------------- None Robot Schematics ------------------ None Fabricated ------------ Nothing Alien Tech Used ----------------- None Achievements -------------- None Challenges ------------ None Game ------ Seed MicroDeliveryShockpuncher Manual? 0 Play Time 00:22:24 Cumulative 2.1 hours Start 2019.10.31 @ 00:28:12 End 2019.10.31 @ 00:49:40 Sessions 1 Manual Loads 0 Difficulty Adventurer Special Mode Halloween2019/Abominations Game No. 7 Rogue 5 Adventurer 1 Explorer 0 Win Type - Total 0 Types 0/0/0/0/0/0/0 Lore% 0 Gallery% 4 Achievement% 4 Wizard Run 0 Options --------- ASCII 1 Keyboard 0 Movement Mouse Keybinds 0 Fullscreen 1 Font 18/SmallcapsGlow Map View 76x50 Tactical HUD 1 Map Filters NONE Filters NONE Steam 1 RUN: adb1f6f8-f262-4a85-b263-b152c329f4f8